bitfinex/quotes_SOLUSD_20250106
["timestamp","ask_amount","ask_price","bid_price","bid_amount"]
[1736137647792,7.72677215,216.41,216.38,131.30795533]
[1736137649794,7.72677215,216.41,216.37,131.30795533]
[1736137653182,7.72677215,216.41,216.37,140.33715333]
[1736137654172,7.72677215,216.41,216.37,131.30795533]
[1736137654894,7.72677215,216.39,216.37,131.30795533]
[1736137655294,5.0,216.39,216.37,131.30795533]
[1736137655782,5.0,216.39,216.36,9.029198]
[1736137656194,7.72677215,216.39,216.36,9.029198]
[1736137656375,5.0,216.39,216.36,9.029198]
[1736137656692,7.72677215,216.39,216.36,9.029198]
[1736137656882,7.72677215,216.39,216.35,133.40795533]
[1736137657774,7.72677215,216.39,216.35,142.43715333]
[1736137658272,2.72677215,216.41,216.38,9.029198]
[1736137659303,5.0,216.42,216.39,9.029198]
[1736137660095,2.72677215,216.41,216.38,9.029198]
[1736137660609,2.72677215,216.41,216.37,9.029198]
[1736137661104,5.0,216.4,216.37,9.029198]
[1736137661696,5.0,216.4,216.37,140.33715333]
[1736137662803,5.0,216.4,216.37,142.43715333]
[1736137665410,5.0,216.4,216.38,9.029198]
[1736137665721,5.0,216.4,216.37,142.43715333]
[1736137666616,5.0,216.4,216.37,133.40795533]
[1736137667112,5.0,216.4,216.37,142.43715333]
[1736137667414,5.0,216.4,216.37,140.33715333]
[1736137667610,5.0,216.4,216.37,142.43715333]
[1736137670327,5.0,216.4,216.37,133.40795533]
[1736137670502,5.0,216.37,216.34,9.029198]
[1736137670697,5.0,216.37,216.34,11.129198]
[1736137672222,5.0,216.37,216.35,9.029198]
[1736137672392,5.0,216.39,216.36,9.029198]
[1736137672595,5.0,216.39,216.37,9.029198]
[1736137672919,5.0,216.39,216.36,9.029198]
[1736137673099,5.0,216.39,216.36,11.129198]
[1736137676804,5.0,216.39,216.36,142.43715333]
[1736137679852,5.0,216.39,216.36,133.40795533]
[1736137685426,5.0,216.37,216.36,131.30795533]
[1736137688650,5.0,216.37,216.33,9.029198]
[1736137688834,5.0,216.37,216.33,11.089198]
[1736137689036,5.0,216.37,216.34,2.06]
[1736137689851,2.72677215,216.36,216.34,2.06]
[1736137690849,5.0,216.37,216.34,2.06]
[1736137691447,2.72677215,216.36,216.34,2.06]
[1736137691649,5.0,216.37,216.34,2.06]
[1736137691828,2.72677215,216.36,216.34,2.06]
[1736137698140,5.0,216.33,216.3,150.04273847]
[1736137698340,2.72677215,216.32,216.27,138.67529432]
[1736137698539,2.72677215,216.32,216.28,9.029198]
[1736137698745,5.0,216.33,216.29,9.029198]
[1736137699559,5.0,216.33,216.3,9.029198]
[1736137700061,2.72677215,216.34,216.31,9.029198]
[1736137700563,5.0,216.35,216.31,9.029198]
[1736137701063,5.0,216.35,216.32,140.33715333]
[1736137702468,5.0,216.35,216.32,131.30795533]
[1736137702674,5.0,216.35,216.32,140.33715333]
[1736137708464,5.0,216.35,216.32,131.30795533]
[1736137708649,2.72677215,216.33,216.32,131.30795533]
[1736137708849,7.72677215,216.33,216.32,131.30795533]
[1736137712690,7.72677215,216.33,216.3,9.029198]
[1736137715093,7.72677215,216.33,216.29,9.029198]
[1736137717496,7.72677215,216.33,216.27,131.30795533]
[1736137717700,7.72677215,216.29,216.27,140.33715333]
[1736137718063,7.72677215,216.29,216.28,9.029198]
[1736137718469,5.0,216.29,216.28,9.029198]
[1736137718898,7.72677215,216.31,216.28,9.029198]
[1736137719105,7.72677215,216.31,216.3,9.029198]
[1736137727404,7.72677215,216.31,216.29,9.029198]
[1736137727567,2.72677215,216.29,216.28,9.029198]
[1736137728187,2.72677215,216.27,216.26,20.0]
[1736137728470,2.72677215,216.27,216.26,29.029198]
[1736137729172,2.72677215,216.27,216.26,9.029198]
[1736137730686,2.72677215,216.25,216.2,142.87085533]
[1736137730991,2.72677215,216.25,216.24,9.029198]
[1736137733287,8.2606,216.36,216.24,9.029198]
[1736137733288,5.0,216.28,216.24,9.029198]
[1736137733479,5.0,216.28,216.27,9.029198]
[1736137734382,5.0,216.3,216.27,9.029198]
[1736137734703,2.72677215,216.29,216.24,23.776884]
[1736137735069,5.0,216.3,216.24,23.776884]
[1736137735384,2.72677215,216.29,216.25,11.5606]
[1736137736496,2.72677215,216.29,216.26,2.02]
[1736137736803,2.72677215,216.29,216.28,9.029198]
[1736137742301,5.0,216.3,216.28,9.029198]
[1736137742490,2.72677215,216.31,216.26,169.44474733]
[1736137742683,2.72677215,216.31,216.3,9.029198]
[1736137743590,2.72677215,216.31,216.3,9.361178]
[1736137748120,2.72677215,216.31,216.3,0.33198]
[1736137753614,2.72677215,216.31,216.3,9.361178]
[1736137754109,2.72677215,216.31,216.3,0.33198]
[1736137756116,2.72677215,216.31,216.3,9.361178]
[1736137757318,2.72677215,216.31,216.3,0.33198]
[1736137759432,3.59360354,216.31,216.3,0.33198]
[1736137762234,2.72677215,216.31,216.3,0.33198]
[1736137767237,2.72677215,216.31,216.3,9.361178]
[1736137770142,5.0,216.32,216.3,9.361178]
[1736137770343,2.72677215,216.33,216.31,9.029198]
[1736137770514,2.72677215,216.33,216.32,9.029198]
[1736137772238,5.0,216.34,216.32,9.029198]
[1736137772445,5.0,216.34,216.3,0.33198]
[1736137772446,5.0,216.34,216.33,9.029198]
[1736137782661,5.0,216.34,216.3,131.63993533]
[1736137782843,2.72677215,216.32,216.3,131.63993533]
[1736137783055,2.72677215,216.32,216.31,9.029198]
[1736137783244,7.72677215,216.32,216.31,9.029198]
[1736137785792,7.72677215,216.32,216.3,131.63993533]
[1736137787662,7.72677215,216.32,216.3,0.33198]
[1736137789557,9.89607557,216.31,216.3,0.33198]
[1736137791073,17.1395929,216.31,216.3,0.33198]
[1736137791675,9.89607557,216.31,216.3,0.33198]
[1736137799856,2.72677215,216.16,216.15,1.5393]
[1736137800060,2.72677215,216.16,216.13,131.30795533]
[1736137800262,2.72677215,216.16,216.15,9.029198]
[1736137803062,2.72677215,216.16,216.13,131.30795533]
[1736137803269,2.72677215,216.12,216.09,137.52805533]
[1736137803583,2.72677215,216.12,216.09,131.30795533]
[1736137805560,2.72677215,216.1,216.09,131.30795533]
[1736137805757,2.72677215,216.04,216.01,1.5608]
[1736137805961,2.72677215,216.0,215.97,131.30795533]
[1736137806263,2.72677215,216.0,215.99,29.029198]
[1736137806700,2.72677215,216.0,215.99,9.029198]
[1736137806995,7.72677215,216.0,215.99,9.029198]
[1736137807172,7.72677215,215.98,215.95,132.86875533]
[1736137807374,7.72677215,215.98,215.97,9.029198]
[1736137807892,2.72677215,215.98,215.97,9.029198]
[1736137808091,5.0,216.0,215.97,9.029198]
[1736137808394,5.0,216.02,215.99,9.029198]
[1736137808565,2.72677215,216.01,215.98,20.0]
[1736137808962,2.72677215,216.01,215.98,151.30795533]
[1736137809282,2.72677215,215.99,215.98,151.30795533]
[1736137809485,2.72677215,216.01,215.98,160.33715333]
[1736137809793,2.72677215,216.01,216.0,9.029198]
[1736137811198,5.0,216.02,216.0,9.029198]
[1736137811401,5.0,216.02,216.01,9.029198]
[1736137812200,2.72677215,216.03,216.01,9.029198]
[1736137813304,2.72677215,216.03,215.99,23.776884]
[1736137813590,2.72677215,216.03,216.02,9.029198]
[1736137814293,2.72677215,216.03,215.98,162.88275533]
[1736137814600,2.72677215,215.99,215.98,131.30795533]
[1736137814897,2.72677215,215.99,215.98,140.33715333]
[1736137817391,2.72677215,215.99,215.98,9.029198]
[1736137817996,7.72677215,216.03,215.99,11.5746]
[1736137818172,7.72677215,216.03,216.02,8.98089132]
[1736137819290,2.72677215,216.03,216.02,8.98089132]
[1736137819469,7.72677215,216.03,216.02,8.98089132]
[1736137819690,7.72677215,216.03,215.99,11.5746]
[1736137819890,2.72677215,216.01,215.99,11.5746]
[1736137820309,2.72677215,215.99,215.98,20.0]
[1736137822216,7.72677215,216.01,215.98,20.0]
[1736137823711,2.72677215,215.99,215.98,20.0]
[1736137823919,2.72677215,215.99,215.98,29.029198]
[1736137825401,2.72677215,215.99,215.98,9.029198]
[1736137825722,7.72677215,215.99,215.98,9.029198]
[1736137827428,2.72677215,215.97,215.95,142.88425533]
[1736137827894,5.0,215.96,215.93,133.32795533]
[1736137828094,2.72677215,215.95,215.93,133.32795533]
[1736137828719,2.72677215,215.95,215.94,9.029198]
[1736137828907,2.72677215,215.95,215.93,133.32795533]
[1736137829092,2.72677215,215.95,215.94,9.029198]
[1736137829425,5.0,215.96,215.94,9.029198]
[1736137829795,5.0,215.96,215.95,9.029198]
[1736137831629,5.0,215.98,215.95,9.029198]
[1736137831799,5.0,215.98,215.97,9.029198]
[1736137832698,5.0,215.95,215.94,142.88505533]
[1736137832904,5.0,215.95,215.94,151.91425333]
[1736137834019,7.72677215,215.95,215.94,131.30795533]
[1736137834428,7.72677215,215.95,215.94,9.029198]
[1736137841830,7.72677215,215.99,215.94,9.029198]
[1736137842028,7.72677215,215.99,215.98,9.029198]
[1736137844000,5.0,215.97,215.93,11.5777]
[1736137844206,5.0,215.97,215.96,9.029198]
[1736137847944,7.72677215,216.03,215.99,131.30795533]
[1736137848111,2.72677215,216.0,215.99,131.30795533]
[1736137848427,2.72677215,216.0,215.96,13.5958]
[1736137848428,5.0,215.99,215.98,9.029198]
[1736137848635,7.72677215,215.97,215.96,9.029198]
[1736137848829,2.72677215,215.92,215.91,131.30795533]
[1736137849205,2.72677215,215.92,215.91,140.33715333]
[1736137851438,2.72677215,215.88,215.84,131.30795533]
[1736137851615,7.72677215,215.9,215.87,9.029198]
[1736137851821,7.72677215,215.9,215.89,9.029198]
[1736137855350,2.72677215,215.88,215.84,131.30795533]
[1736137855659,5.0,215.86,215.84,133.32795533]
[1736137855950,7.72677215,215.88,215.84,133.32795533]
[1736137857757,7.72677215,215.88,215.87,9.029198]
[1736137859554,5.0,215.9,215.87,9.029198]
[1736137859862,5.0,215.9,215.89,9.029198]
[1736137860359,7.72677215,215.9,215.89,9.029198]
[1736137862255,5.0,215.92,215.89,140.33715333]
[1736137862457,7.72677215,215.92,215.91,9.029198]
[1736137863833,5.0,215.92,215.91,9.029198]
[1736137864457,5.0,215.96,215.92,23.776884]
[1736137864676,5.0,215.96,215.95,9.029198]
[1736137865977,7.72677215,215.98,215.95,9.029198]
[1736137866145,7.72677215,215.98,215.97,9.029198]
[1736137866544,5.0,216.0,215.97,140.33715333]
[1736137866869,5.0,216.0,215.99,9.029198]
[1736137867547,7.72677215,215.98,215.97,131.30795533]
[1736137868555,7.72677215,215.98,215.97,140.33715333]
[1736137870065,7.72677215,215.98,215.97,9.029198]
[1736137870246,7.72677215,215.98,215.96,9.029198]
[1736137870648,7.72677215,215.98,215.95,9.029198]
[1736137870847,2.72677215,215.95,215.94,9.029198]
[1736137871363,5.0,215.94,215.93,131.30795533]
[1736137871742,5.0,215.94,215.9,2.02]
[1736137871951,5.0,215.91,215.9,2.02]
[1736137872269,7.72677215,215.91,215.9,11.049198]
[1736137874844,7.72677215,215.91,215.9,2.02]
[1736137876873,7.72677215,215.91,215.88,140.33715333]
[1736137877176,7.72677215,215.87,215.86,9.029198]
[1736137879148,7.72677215,215.87,215.85,9.029198]
[1736137879545,2.72677215,215.85,215.84,9.029198]
[1736137880246,2.72677215,215.85,215.84,20.0]
[1736137880448,2.72677215,215.85,215.84,29.029198]
[1736137881377,2.72677215,215.85,215.84,20.0]
[1736137881575,2.72677215,215.85,215.82,131.30795533]
[1736137881759,2.72677215,215.83,215.82,131.30795533]
[1736137882070,2.72677215,215.83,215.82,9.029198]
[1736137882240,2.72677215,215.83,215.81,22.02]
[1736137882447,2.72677215,215.83,215.82,9.029198]
[1736137884058,2.72677215,215.81,215.79,2.02]
[1736137884347,5.0,215.8,215.79,2.02]
[1736137884567,2.72677215,215.81,215.79,2.02]
[1736137885748,2.72677215,215.81,215.8,9.029198]
[1736137886254,2.72677215,215.81,215.79,2.02]
[1736137886452,2.72677215,215.81,215.8,9.029198]
[1736137887272,5.0,215.82,215.8,9.029198]
[1736137887576,5.0,215.82,215.81,9.029198]
[1736137889458,5.0,215.82,215.81,140.33715333]
[1736137889972,2.72677215,215.83,215.81,140.33715333]
[1736137890175,5.0,215.84,215.82,9.029198]
[1736137890363,2.72677215,215.85,215.83,140.33715333]
[1736137890569,2.72677215,215.85,215.84,9.029198]
[1736137891080,5.0,215.84,215.83,131.30795533]
[1736137891381,5.0,215.84,215.83,140.33715333]
[1736137893471,5.0,215.84,215.83,131.30795533]
[1736137893671,2.72677215,215.75,215.73,131.30795533]
[1736137893877,2.72677215,215.73,215.7,133.32795533]
[1736137894183,2.72677215,215.73,215.72,9.029198]
[1736137894780,2.72677215,215.78,215.73,155.08483933]
[1736137895092,2.72677215,215.78,215.77,9.029198]
[1736137896266,2.72677215,215.8,215.77,20.0]
[1736137896461,5.0,215.81,215.79,9.029198]
[1736137896656,2.72677215,215.82,215.8,9.029198]
[1736137896887,2.72677215,215.82,215.81,9.029198]
[1736137897490,2.72677215,215.8,215.77,131.30795533]
[1736137897990,2.72677215,215.78,215.77,131.30795533]
[1736137898185,2.72677215,215.78,215.77,140.33715333]
[1736137898375,2.72677215,215.78,215.77,9.029198]
[1736137898791,2.72677215,215.72,215.69,131.30795533]
[1736137899295,2.72677215,215.72,215.71,9.029198]
[1736137899677,5.0,215.73,215.71,9.029198]
[1736137899878,5.0,215.73,215.72,9.029198]
[1736137900378,2.72677215,215.72,215.71,20.0]
[1736137900580,2.72677215,215.72,215.71,29.029198]
[1736137901183,5.0,215.73,215.71,29.029198]
[1736137901389,5.0,215.73,215.72,9.029198]
[1736137901592,2.72677215,215.74,215.72,9.029198]
[1736137901777,2.72677215,215.74,215.73,9.029198]
[1736137903778,2.72677215,215.76,215.73,151.92545333]
[1736137904099,2.72677215,215.78,215.75,9.029198]
[1736137904299,2.72677215,215.78,215.77,9.029198]
[1736137905386,2.72677215,215.78,215.77,140.33715333]
[1736137906500,2.72677215,215.8,215.77,140.33715333]
[1736137906689,2.72677215,215.8,215.79,9.029198]
[1736137907388,5.0,215.81,215.79,9.029198]
[1736137907576,5.0,215.81,215.8,9.029198]
[1736137908684,2.72677215,215.82,215.8,9.029198]
[1736137908890,2.72677215,215.82,215.81,9.029198]
[1736137909406,2.72677215,215.82,215.8,9.029198]
[1736137909804,7.72677215,215.82,215.81,9.029198]
[1736137910907,7.72677215,215.82,215.78,35.362684]
[1736137911075,7.72677215,215.82,215.8,9.029198]
[1736137911281,2.72677215,215.8,215.79,9.029198]
[1736137912802,7.72677215,215.8,215.79,9.029198]
[1736137915312,5.0,215.8,215.79,9.029198]
[1736137919320,5.0,215.8,215.79,140.33715333]
[1736137921224,7.72677215,215.82,215.79,164.11403733]
[1736137921506,7.72677215,215.82,215.81,9.029198]
[1736137923897,7.72677215,215.84,215.81,140.33715333]
[1736137924210,2.72677215,215.86,215.83,140.33715333]
[1736137924422,7.72677215,215.86,215.85,9.029198]
[1736137926416,7.72677215,215.88,215.85,11.049198]
[1736137926597,7.72677215,215.88,215.87,9.029198]
[1736137927795,7.72677215,215.9,215.87,9.029198]
[1736137927994,7.72677215,215.9,215.89,9.029198]
[1736137928315,5.0,215.9,215.89,9.029198]
[1736137928518,7.72677215,215.9,215.85,142.88995533]
[1736137928724,5.0,215.88,215.86,2.02]
[1736137929504,5.0,215.88,215.87,20.0]
[1736137929702,5.0,215.88,215.87,29.029198]
[1736137930013,5.0,215.88,215.87,9.029198]
[1736137930815,2.72677215,215.87,215.86,2.02]
[1736137931192,2.72677215,215.87,215.86,11.049198]
[1736137931393,2.72677215,215.87,215.86,142.35715333]
[1736137932191,2.72677215,215.87,215.86,133.32795533]
[1736137933317,2.72677215,215.87,215.86,131.30795533]
[1736137937409,5.0,215.86,215.85,9.029198]
[1736137942821,5.0,215.86,215.84,133.32795533]
[1736137942822,2.72677215,215.85,215.84,131.30795533]
[1736137945135,2.72677215,215.85,215.84,115.20382809]
[1736137946341,2.72677215,215.85,215.79,126.25302609]
[1736137946519,5.0,215.81,215.8,9.029198]
[1736137951306,5.0,215.81,215.79,2.02]
[1736137951307,2.72677215,215.8,215.79,2.02]
[1736137952304,2.72677215,215.8,215.77,11.049198]
[1736137952507,5.0,215.75,215.72,126.79242809]
[1736137952729,5.0,215.75,215.74,9.029198]
[1736137953609,7.72677215,215.75,215.74,9.029198]
[1736137953857,7.72677215,215.75,215.74,20.0]
[1736137954015,7.72677215,215.75,215.74,29.029198]
[1736137955336,2.72677215,215.75,215.74,29.029198]
[1736137955549,7.72677215,215.75,215.74,29.029198]
[1736137956540,7.72677215,215.75,215.74,31.049198]
[1736137958324,7.72677215,215.75,215.74,146.25302609]
[1736137958526,5.0,215.73,215.71,115.20382809]
[1736137958728,5.0,215.73,215.72,11.049198]
[1736137959927,7.72677215,215.75,215.72,34.826082]
[1736137960125,7.72677215,215.78,215.74,124.23302609]
[1736137960337,7.72677215,215.78,215.77,9.029198]
[1736137961923,5.0,215.78,215.77,9.029198]
[1736137964145,5.0,215.78,215.77,148.00991009]
[1736137964352,7.72677215,215.8,215.77,148.00991009]
[1736137964525,7.72677215,215.8,215.79,9.029198]
[1736137965856,5.0,215.8,215.79,32.806082]
[1736137966029,5.0,215.82,215.8,23.776884]
[1736137966228,7.72677215,215.84,215.81,9.029198]
[1736137966428,7.72677215,215.84,215.83,9.029198]
[1736137967726,5.0,215.84,215.83,124.23302609]
[1736137968329,7.72677215,215.84,215.83,124.23302609]
[1736137968635,7.72677215,215.84,215.83,115.20382809]
[1736137973254,7.72677215,215.84,215.81,9.029198]
[1736137973467,2.72677215,215.82,215.81,9.029198]
[1736137973958,7.72677215,215.82,215.81,9.029198]
[1736137980456,5.0,215.84,215.81,9.029198]
[1736137980667,5.0,215.84,215.83,9.029198]
[1736137982171,5.0,215.86,215.83,124.23302609]
[1736137982339,7.72677215,215.86,215.85,9.029198]
[1736137982543,7.72677215,215.86,215.83,124.23302609]
[1736137982750,5.0,215.84,215.83,115.20382809]
[1736137983566,7.72677215,215.84,215.83,115.20382809]
[1736137983953,16.75597015,215.84,215.83,115.20382809]
[1736137984348,5.0,215.8,215.79,2.02]
[1736137984658,7.72677215,215.8,215.79,2.02]
[1736137986363,7.72677215,215.77,215.75,9.029198]
[1736137986569,7.72677215,215.77,215.75,11.049198]
[1736137987552,7.72677215,215.74,215.73,124.23302609]
[1736137987749,7.72677215,215.74,215.73,126.25302609]
[1736137987958,5.0,215.74,215.73,126.25302609]
[1736137989553,7.72677215,215.76,215.73,150.02991009]
[1736137989862,5.0,215.74,215.73,115.20382809]
[1736137990068,7.72677215,215.76,215.73,141.00071209]
[1736137992066,5.0,215.74,215.73,141.00071209]
[1736137992272,5.0,215.74,215.73,150.02991009]
[1736137992580,5.0,215.74,215.73,117.22382809]
[1736137992878,7.72677215,215.76,215.73,126.25302609]
[1736137993070,7.72677215,215.76,215.75,9.029198]
[1736137994464,2.72677215,215.74,215.73,117.22382809]
[1736137994649,7.72677215,215.74,215.73,117.22382809]
[1736137994855,7.72677215,215.74,215.73,126.25302609]
[1736137995466,7.72677215,215.74,215.73,117.22382809]
[1736137995661,7.72677215,215.74,215.73,126.25302609]
[1736137999758,7.72677215,215.74,215.73,117.22382809]
[1736137999962,7.72677215,215.74,215.73,126.25302609]
[1736138001280,7.72677215,215.74,215.67,128.45082809]
[1736138001481,7.72677215,215.7,215.69,9.029198]
[1736138001665,7.72677215,215.7,215.68,2.02]
[1736138001872,2.72677215,215.68,215.67,2.02]
[1736138002558,2.72677215,215.68,215.67,9.029198]
[1736138002779,2.72677215,215.68,215.67,11.049198]
[1736138003155,2.72677215,215.68,215.67,2.02]
[1736138003361,7.72677215,215.68,215.67,11.049198]
[1736138009181,7.72677215,215.68,215.67,126.25302609]
[1736138012494,7.72677215,215.68,215.67,117.22382809]
[1736138013483,7.72677215,215.68,215.67,126.25302609]
[1736138013692,7.72677215,215.68,215.67,117.22382809]
[1736138013880,7.72677215,215.68,215.67,126.25302609]
[1736138015202,7.72677215,215.68,215.67,11.049198]
[1736138016572,8.02677215,215.68,215.67,11.049198]
[1736138017379,8.02677215,215.68,215.67,2.02]
[1736138019705,8.02677215,215.68,215.65,135.20382809]
[1736138019902,8.02677215,215.68,215.66,2.02]
[1736138020204,8.02677215,215.68,215.66,11.049198]
[1736138024894,7.72677215,215.66,215.65,115.20382809]
[1736138026919,7.72677215,215.66,215.64,11.049198]
[1736138030004,7.72677215,215.66,215.64,9.029198]
[1736138030306,7.72677215,215.66,215.64,11.049198]
[1736138030787,7.72677215,215.66,215.64,9.029198]
[1736138035409,2.72677215,215.63,215.62,126.79782809]
[1736138035611,2.72677215,215.63,215.62,137.84702609]
[1736138035912,2.72677215,215.63,215.62,128.81782809]
[1736138036209,2.72677215,215.63,215.62,137.84702609]
[1736138037582,2.72677215,215.63,215.62,128.81782809]
[1736138037782,2.72677215,215.63,215.62,137.84702609]
[1736138039908,2.72677215,215.63,215.62,135.82702609]
[1736138040304,2.72677215,215.63,215.62,115.20382809]
[1736138042506,5.0,215.64,215.62,148.00991009]
[1736138042810,2.72677215,215.65,215.63,20.623098]
[1736138042996,2.72677215,215.65,215.64,9.029198]
[1736138043205,0.3,215.68,215.64,32.806082]
[1736138043206,2.72677215,215.67,215.64,32.806082]
[1736138043396,2.72677215,215.67,215.66,29.029198]
[1736138043721,5.3,215.68,215.66,144.23302609]
[1736138044093,2.72677215,215.67,215.66,144.23302609]
[1736138044591,5.3,215.68,215.66,155.82522609]
[1736138045099,2.72677215,215.67,215.66,146.79602809]
[1736138045301,2.72677215,215.67,215.66,155.82522609]
[1736138047013,7.72677215,215.67,215.66,144.23302609]
[1736138048120,7.72677215,215.67,215.66,29.029198]
[1736138049224,7.72677215,215.67,215.65,22.02]
[1736138049408,7.72677215,215.67,215.66,9.029198]
[1736138049607,0.3,215.68,215.66,9.029198]
[1736138049791,0.3,215.68,215.67,32.806082]
[1736138053817,0.3,215.68,215.65,33.6126]
[1736138054009,0.3,215.68,215.67,9.029198]
[1736138054214,0.3,215.68,215.67,145.229198]
[1736138055122,0.3,215.68,215.67,136.2]
[1736138056634,0.3,215.68,215.67,145.229198]
[1736138060129,0.3,215.68,215.67,136.2]
[1736138061233,0.3,215.68,215.67,145.229198]
[1736138063835,0.3,215.68,215.67,136.2]
[1736138072036,9.329198,215.68,215.65,136.2]
[1736138072266,5.0,215.66,215.65,136.2]
[1736138072747,5.0,215.63,215.62,138.22]
[1736138073924,5.0,215.63,215.62,136.2]
[1736138080547,5.0,215.63,215.62,145.229198]
[1736138081726,5.0,215.63,215.62,169.006082]
[1736138085640,5.0,215.63,215.62,136.2]
[1736138086090,5.0,215.63,215.62,145.229198]
[1736138090565,5.0,215.63,215.62,147.249198]
[1736138093056,5.0,215.65,215.62,182.620482]
[1736138093254,5.0,215.65,215.64,9.029198]
[1736138096130,5.0,215.65,215.64,145.229198]
[1736138101060,5.0,215.65,215.64,169.006082]
[1736138101269,8.02677215,215.68,215.64,145.229198]
[1736138101445,8.02677215,215.68,215.67,9.029198]
[1736138101645,8.02677215,215.68,215.67,145.229198]
[1736138101840,8.02677215,215.68,215.67,136.2]
[1736138109869,8.02677215,215.68,215.67,145.229198]
[1736138112768,5.3,215.68,215.67,32.806082]
[1736138114276,0.0001,215.68,215.67,169.006082]
[1736138114771,5.0,215.73,215.71,43.776884]
[1736138114993,14.97028948,215.76,215.72,171.026082]
[1736138115149,7.24351733,215.76,215.75,169.006082]
[1736138115566,12.24351733,215.76,215.75,169.006082]
[1736138116175,5.0,215.76,215.75,169.006082]
[1736138116557,5.0,215.78,215.76,23.776884]
[1736138116752,5.0,215.78,215.77,32.806082]
[1736138117349,5.0,215.78,215.77,169.006082]
[1736138117553,5.0,215.8,215.78,23.776884]
[1736138117775,5.0,215.8,215.79,34.826082]
[1736138118074,5.0,215.8,215.79,171.026082]
[1736138118774,5.0,215.82,215.8,23.776884]
[1736138118959,5.0,215.82,215.81,32.806082]
[1736138119164,5.0,215.82,215.81,20.0]
[1736138119165,7.72677215,215.82,215.81,20.0]
[1736138119375,5.0,215.82,215.81,29.029198]
[1736138119561,2.72677215,215.84,215.82,23.776884]
[1736138119562,7.72677215,215.84,215.82,23.776884]
[1736138119881,5.0,215.84,215.83,9.029198]
[1736138120187,7.72677215,215.84,215.83,9.029198]
[1736138120969,2.72677215,215.8,215.79,136.2]
[1736138121164,7.72677215,215.8,215.79,138.22]
[1736138121674,7.72677215,215.8,215.79,136.2]
[1736138121865,7.72677215,215.8,215.79,138.22]
[1736138122066,7.72677215,215.8,215.79,136.2]
[1736138122464,7.72677215,215.78,215.77,136.2]
[1736138123587,2.72677215,215.8,215.77,169.006082]
[1736138123776,2.72677215,215.8,215.79,9.029198]
[1736138125982,2.72677215,215.8,215.79,145.229198]
[1736138126385,5.0,215.81,215.79,145.229198]
[1736138126567,5.0,215.81,215.8,9.029198]
[1736138128886,5.0,215.81,215.8,11.049198]
[1736138129063,5.0,215.81,215.8,9.029198]
[1736138129260,2.72677215,215.72,215.71,136.2]
[1736138130685,2.72677215,215.72,215.71,145.229198]
[1736138131877,5.0,215.73,215.71,145.229198]
[1736138132083,5.0,215.73,215.72,9.029198]
[1736138132987,5.0,215.73,215.72,32.806082]
[1736138134289,2.72677215,215.74,215.72,32.806082]
[1736138134992,2.72677215,215.74,215.72,169.006082]
[1736138135491,5.0,215.75,215.73,9.029198]
[1736138135690,5.0,215.75,215.74,9.029198]
[1736138140896,5.0,215.75,215.74,145.229198]
[1736138152102,5.0,215.75,215.74,147.229198]
[1736138152600,5.0,215.75,215.74,138.2]
[1736138152803,5.0,215.75,215.74,136.2]
[1736138152991,7.72677215,215.73,215.72,136.2]
[1736138153303,7.72677215,215.73,215.72,145.229198]
[1736138153908,7.72677215,215.73,215.72,136.2]
[1736138154107,7.72677215,215.73,215.72,145.229198]
[1736138154502,2.72677215,215.73,215.72,169.006082]
[1736138155781,7.72677215,215.75,215.73,23.776884]
[1736138155988,7.72677215,215.75,215.74,32.806082]
[1736138158105,7.72677215,215.75,215.74,20.0]
[1736138158295,7.72677215,215.75,215.74,29.029198]
[1736138158904,7.72677215,215.75,215.74,165.229198]
[1736138161518,7.72677215,215.75,215.74,156.2]
[1736138161814,7.72677215,215.75,215.74,165.229198]
[1736138163112,7.72677215,215.75,215.74,147.229198]
[1736138163295,7.72677215,215.75,215.74,138.2]
[1736138163999,7.72677215,215.75,215.74,147.229198]